bitfinex/quotes_ETHUSD_20250115
["timestamp","ask_amount","ask_price","bid_price","bid_amount"]
[1736948333908,4.5595,3271.3,3270.0,3.05809]
[1736948334235,1.5026,3271.3,3270.1,3.08857839]
[1736948334552,1.5026,3272.3,3270.1,1.53167839]
[1736948334694,1.5026,3272.3,3270.3,3.0578]
[1736948335044,1.5026,3271.5,3269.0,4.22090455]
[1736948335248,4.5593,3271.5,3270.3,3.05782]
[1736948335394,1.5026,3271.5,3269.9,0.0305767]
[1736948335737,1.5026,3271.5,3270.1,3.05794]
[1736948336040,1.5026,3271.5,3270.4,3.0577]
[1736948336543,1.5026,3271.5,3270.5,0.03057463]
[1736948336844,1.5026,3272.0,3271.7,3.05649]
[1736948337154,1.34773533,3273.7,3271.8,0.03056432]
[1736948337155,1.5026,3272.6,3271.8,0.03056432]
[1736948337309,1.5026,3272.6,3271.6,3.05652]
[1736948337508,5.01412,3272.6,3270.7,1.5011]
[1736948337815,1.5026,3272.6,3271.7,3.05648]
[1736948338220,1.5026,3272.6,3272.2,3.05603]
[1736948338549,1.5026,3273.5,3272.3,0.03055878]
[1736948338841,1.5026,3273.5,3273.2,3.05508]
[1736948339003,3.05409,3274.3,3273.2,3.05508]
[1736948339199,1.5026,3274.2,3273.2,3.05509]
[1736948339401,1.5026,3274.2,3273.3,0.03054858]
[1736948339621,1.5026,3274.8,3274.1,3.05427]
[1736948339838,1.5026,3274.8,3273.7,3.05461]
[1736948339839,1.5026,3274.8,3274.2,3.05415]
[1736948340149,1.5026,3274.8,3273.4,3.05492]
[1736948340150,1.5026,3274.8,3274.5,3.05381]
[1736948340301,6.50906909,3276.4,3274.9,3.05352]
[1736948340302,1.5026,3275.4,3274.9,3.05352]
[1736948340503,1.5026,3275.4,3274.7,3.0537]
[1736948340698,1.5026,3275.4,3274.5,0.03053449]
[1736948340699,1.5026,3275.4,3274.6,3.05378]
[1736948340930,1.5026,3275.4,3273.6,3.05474]
[1736948341143,1.5026,3275.4,3274.5,3.05387]
[1736948341354,1.5026,3275.4,3275.0,3.05342]
[1736948341648,1.5026,3275.4,3274.8,3.05361]
[1736948341842,1.5026,3275.4,3274.6,3.05379]
[1736948342045,1.5026,3275.4,3274.0,3.05429]
[1736948342247,3.05334,3275.1,3274.0,3.05429]
[1736948342429,3.05334,3275.1,3272.9,3.05536]
[1736948342430,4.55619,3274.9,3273.3,3.05493]
[1736948342603,1.5026,3274.1,3273.0,3.05525]
[1736948342799,3.05446,3273.9,3272.6,3.05567]
[1736948343038,3.05459,3273.8,3272.5,2.7149736]
[1736948343202,1.5026,3274.1,3271.9,1.5011]
[1736948343502,1.5026,3274.1,3271.4,3.05676]
[1736948343503,3.0552,3273.2,3271.1,4.52088338]
[1736948343703,3.0548,3273.6,3271.4,3.0567]
[1736948343704,3.05542,3272.9,3271.4,3.0567]
[1736948343902,1.5026,3273.1,3271.0,1.2138736]
[1736948344154,1.5008,3272.9,3271.0,4.2710236]
[1736948344307,1.5008,3271.6,3271.0,1.2138736]
[1736948344506,4.55743,3271.6,3270.2,0.30885167]
[1736948344707,1.5008,3271.6,3270.3,0.36725073]
[1736948344938,3.05709,3271.1,3269.9,3.05819]
[1736948345248,4.55807,3270.9,3269.7,3.05838]
[1736948345415,1.5008,3270.9,3269.8,3.08884932]
[1736948345616,3.05754,3270.6,3269.1,0.03057956]
[1736948345831,3.05754,3270.6,3269.2,0.16016796]
[1736948346030,3.05765,3270.5,3269.2,0.16016796]
[1736948346447,3.05735,3270.8,3269.0,3.05895]
[1736948346603,1.5008,3270.9,3269.0,3.05895]
[1736948346604,3.05792,3270.2,3269.0,3.05895]
[1736948347002,1.5008,3270.1,3269.0,3.05895]
[1736948347204,1.5008,3270.1,3269.1,3.05891]
[1736948347451,1.5008,3270.1,3269.5,3.05853]
[1736948347757,0.1557934,3271.1,3269.5,3.05853]
[1736948347758,1.5008,3270.9,3269.6,0.03058234]
[1736948347953,1.5008,3270.9,3268.9,0.0305789]
[1736948348135,1.5008,3270.9,3268.5,4.63057]
[1736948348136,3.05755,3270.6,3269.0,3.05896]
[1736948348306,1.5008,3270.9,3269.1,0.03058644]
[1736948348507,1.5008,3270.9,3269.6,3.05842]
[1736948348705,1.5008,3270.9,3269.6,0.305842]
[1736948349030,1.5008,3272.0,3270.3,0.0159]
[1736948349232,1.5008,3272.0,3270.5,3.05763]
[1736948349406,1.5008,3272.0,3270.4,3.08826957]
[1736948349407,1.5008,3272.0,3270.6,0.03056586]
[1736948349605,1.5008,3272.0,3270.9,3.05726]
[1736948349831,3.97488338,3271.1,3270.3,0.0159]
[1736948350076,1.5008,3271.2,3270.4,3.0577]
[1736948350389,1.5008,3271.9,3271.0,3.05715]
[1736948350673,1.5008,3271.9,3271.1,0.03056907]
[1736948350977,1.5008,3271.9,3270.7,1.5711]
[1736948351143,1.5008,3271.9,3271.3,3.0568]
[1736948351329,1.5008,3271.9,3270.4,0.28303644]
[1736948351748,3.97488338,3271.6,3270.4,0.28303644]
[1736948351947,1.5008,3271.9,3270.6,6.11508]
[1736948352170,1.5008,3272.5,3271.0,1.5711]
[1736948352472,1.5008,3272.5,3272.1,3.05613]
[1736948352773,1.5008,3272.5,3271.1,0.15711]
[1736948352998,1.5008,3272.5,3271.5,3.05664]
[1736948353163,3.05597,3272.3,3271.1,3.057]
[1736948353377,3.05623,3272.0,3270.4,1.5711]
[1736948353677,3.97488338,3271.6,3271.0,0.28301753]
[1736948353974,0.39748834,3271.5,3271.0,0.28301753]
[1736948354183,1.5008,3271.4,3271.0,0.28301753]
[1736948354364,3.97488338,3271.1,3271.0,0.28301753]
[1736948354574,10.03195338,3271.1,3271.0,0.28301753]
[1736948354883,10.03195338,3271.1,3269.3,3.05868]
[1736948354884,3.0,3271.0,3269.4,0.03058077]
[1736948355029,5.47568338,3271.1,3269.3,3.05869]
[1736948355228,3.84756834,3271.0,3269.5,3.05854]
[1736948355547,3.84756834,3271.0,3269.7,3.05834]
[1736948355750,3.84756834,3271.0,3268.9,3.05912]
[1736948355963,1.5008,3270.4,3269.3,3.05873]
[1736948356131,1.5008,3270.4,3269.6,3.05847]
[1736948356338,1.5008,3270.4,3268.3,3.05966]
[1736948356651,1.5008,3270.4,3269.3,3.05869]
[1736948356963,1.5008,3270.4,3269.4,0.0305808]
[1736948357165,1.5008,3271.0,3269.4,0.0305808]
[1736948357347,1.5008,3271.0,3269.5,3.05857]
[1736948357535,1.5008,3271.0,3270.4,3.0577]
[1736948357732,1.5008,3271.0,3270.0,0.03057531]
[1736948357977,1.5008,3271.0,3269.6,0.30891508]
[1736948358179,1.5008,3271.0,3269.3,0.03057753]
[1736948358492,1.5008,3271.0,3269.2,0.28390598]
[1736948358642,1.5008,3271.0,3269.4,3.05858]
[1736948358845,7.55806,3271.0,3269.3,0.28390598]
[1736948359165,3.97488338,3270.6,3269.3,0.28390598]
[1736948359363,3.97488338,3270.6,3269.5,3.05857]
[1736948359579,3.97488338,3270.6,3269.8,3.05822]
[1736948359901,1.5008,3271.0,3269.9,0.03058228]
[1736948360178,1.5008,3271.0,3269.4,3.05866]
[1736948360340,1.5008,3271.0,3269.3,0.3342766]
[1736948360540,1.5008,3271.0,3269.4,0.03057843]
[1736948360742,1.5008,3271.0,3269.7,3.05838]
[1736948360941,5.47568338,3271.6,3271.0,3.05715]
[1736948361352,1.5008,3271.6,3270.6,0.03057057]
[1736948361552,1.5008,3272.5,3270.4,0.55]
[1736948361756,1.5008,3272.5,3270.5,0.0305645]
[1736948361989,1.5008,3272.5,3272.4,3.05586]
[1736948362153,4.29593379,3273.1,3272.9,3.05533]
[1736948362154,1.5008,3273.1,3272.9,3.05533]
[1736948362346,0.85162759,3273.6,3272.7,3.05556]
[1736948362542,0.85162759,3273.6,3273.5,3.05483]
[1736948362844,1.5008,3273.8,3272.8,0.03055099]
[1736948363061,1.5008,3273.8,3272.8,0.0305495]
[1736948363255,1.5008,3273.8,3273.5,3.05481]
[1736948363590,4.39203213,3275.3,3272.4,1.5711]
[1736948363591,1.5008,3274.4,3272.9,3.05539]
[1736948363740,1.5008,3274.4,3273.1,3.0552]
[1736948363944,1.5008,3274.4,3273.0,3.39138241]
[1736948363945,1.5008,3274.4,3273.2,0.03054314]
[1736948364357,1.5008,3274.4,3273.9,3.0544]
[1736948364755,1.5008,3274.4,3272.2,0.495]
[1736948364991,1.5008,3274.4,3273.9,3.05442]
[1736948365284,1.5008,3275.0,3274.1,3.05418]
[1736948365592,1.5008,3275.0,3273.8,3.05454]
[1736948365801,3.97488338,3274.6,3274.0,3.05436]
[1736948365942,3.97488338,3274.6,3273.9,3.05446]
[1736948366443,3.97488338,3274.6,3273.7,3.05463]
[1736948367047,1.5008,3274.0,3272.6,3.05567]
[1736948367271,0.54756834,3273.9,3273.0,3.05525]
[1736948367550,0.54756834,3273.9,3272.1,1.2138736]
[1736948367861,1.5008,3274.0,3272.2,0.03055329]
[1736948368061,1.5008,3274.0,3273.4,3.05492]
[1736948368382,3.97488338,3273.6,3272.3,3.05595]
[1736948368560,3.97488338,3273.6,3272.5,3.05571]
[1736948368767,3.97488338,3273.6,3272.6,3.05566]
[1736948368964,3.44203034,3273.5,3272.2,3.056]
[1736948369163,3.44203034,3273.5,3271.2,3.05692]
[1736948369164,3.97488338,3273.1,3271.5,1.5711]
[1736948369395,1.5008,3272.5,3271.4,3.05674]
[1736948369564,1.5008,3272.5,3271.0,1.2138736]
[1736948369764,1.5008,3272.5,3271.6,3.05651]
[1736948369966,1.5008,3272.5,3271.7,0.03056158]
[1736948370306,1.5008,3273.5,3272.5,3.05573]
[1736948370658,1.5008,3273.5,3272.7,3.05552]
[1736948370996,1.5008,3273.5,3272.0,1.60165458]
[1736948371197,3.97488338,3274.3,3272.9,3.05539]
[1736948371400,3.97488338,3274.3,3273.1,3.0552]
[1736948371702,1.5008,3274.9,3273.2,0.03054504]
[1736948371703,3.97488338,3274.8,3273.2,0.03054504]
[1736948371998,3.97488338,3274.8,3273.9,3.05442]
[1736948372373,3.97488338,3274.8,3273.1,1.5711]
[1736948372374,3.97488338,3274.8,3273.8,3.05452]
[1736948372569,3.97488338,3274.8,3273.3,3.05492]
[1736948372776,3.97488338,3274.8,3273.4,0.3085462]
[1736948372981,3.05375,3274.7,3273.1,4.62622]
[1736948373185,1.5008,3274.9,3272.0,0.25]
[1736948373186,3.97488338,3274.3,3273.2,0.03054362]
[1736948373385,3.97488338,3274.3,3272.6,0.03054608]
[1736948373600,7.02850338,3274.8,3273.6,3.05472]
[1736948373800,3.05371,3274.7,3273.6,3.05472]
[1736948374007,3.0,3275.1,3272.9,3.05535]
[1736948374008,1.5008,3274.2,3272.9,3.05535]
[1736948374304,3.05429,3274.1,3273.0,3.05529]
[1736948374655,3.0,3274.0,3272.9,3.05539]
[1736948374888,1.5008,3274.2,3273.0,0.03055116]
[1736948375086,1.5008,3274.2,3273.8,3.05452]
[1736948375274,1.5008,3274.2,3273.9,3.05442]
[1736948375494,1.5008,3274.2,3273.8,3.05455]
[1736948375654,1.5008,3274.2,3273.6,3.52766]
[1736948375856,1.6223,3274.8,3273.7,0.03054421]
[1736948376058,1.6223,3274.8,3273.6,3.880426]
[1736948376263,1.6223,3274.8,3273.7,3.08517714]
[1736948376490,5.59718338,3275.6,3273.7,0.03053714]
[1736948376761,3.05315,3275.3,3274.1,3.05425]
[1736948376991,3.97488338,3275.1,3273.6,5.473926]
[1736948377516,0.8843,3273.2,3272.1,1.20252]
[1736948377804,6.0566,3271.6,3271.1,0.84774738]
[1736948378006,7.03176338,3271.3,3271.1,0.84774738]
[1736948378175,7.03176338,3271.3,3271.2,2.33395658]
[1736948378379,3.97488338,3271.3,3271.1,0.84774738]
[1736948378779,3.97488338,3271.3,3270.2,0.03057494]
[1736948379119,3.97488338,3270.5,3269.6,3.05846]
[1736948379419,3.97488338,3270.5,3269.9,3.05816]
[1736948379573,3.97488338,3270.5,3269.7,0.3364237]
[1736948379773,3.97488338,3270.5,3269.8,0.0305794]
[1736948380304,3.97488338,3271.0,3269.8,0.0305794]
[1736948380605,3.97488338,3271.0,3270.8,3.05733]
[1736948380813,0.0320847,3272.2,3271.0,3.05709]
[1736948380814,4.85918338,3271.5,3271.0,3.05709]
[1736948381103,3.97488338,3272.7,3271.1,0.03056764]
[1736948381287,1.26712862,3272.9,3271.1,0.03056764]
[1736948381288,1.26712862,3272.9,3271.2,3.36575276]
[1736948381487,1.26712862,3272.9,3271.7,1.5935]
[1736948381801,3.97488338,3272.7,3272.3,3.05593]
[1736948382016,3.97488338,3272.7,3272.0,3.05617]
[1736948382324,3.97488338,3272.7,3271.8,3.05635]
[1736948382607,0.0320847,3272.6,3271.8,3.05639]
[1736948382778,4.00696808,3272.7,3271.9,3.05632]
[1736948383181,3.97488338,3272.7,3272.3,3.0559]
[1736948383390,0.8843,3273.0,3272.4,0.03055684]
[1736948383653,3.97488338,3272.7,3271.9,0.0305542]
[1736948383766,0.8843,3273.0,3271.9,0.0305542]
[1736948383767,4.85918338,3273.0,3272.4,3.0558]
[1736948384097,4.85918338,3273.0,3271.2,1.90227276]
[1736948384098,3.97488338,3273.0,3272.7,3.05556]
[1736948384280,3.97488338,3273.7,3272.8,0.03055248]
[1736948384460,3.97488338,3273.7,3272.7,3.05552]
[1736948384794,3.97488338,3273.7,3273.2,3.05508]
[1736948385103,0.0320847,3273.6,3272.8,3.0554]
[1736948385304,3.97488338,3273.2,3272.1,3.05605]
[1736948385605,3.97488338,3272.7,3272.2,3.05604]
[1736948385782,3.97488338,3272.7,3272.0,0.462]
[1736948385977,3.97488338,3272.7,3272.6,3.05567]
[1736948386166,3.97488338,3273.2,3272.6,3.05567]
[1736948386365,3.97488338,3273.2,3272.9,3.05539]
[1736948386592,3.97488338,3273.2,3272.1,0.03055046]
[1736948386794,3.97488338,3273.2,3272.7,3.05549]
[1736948387070,3.97488338,3273.2,3272.1,0.03055046]
[1736948387071,0.0320847,3273.1,3272.1,0.03055235]
[1736948387427,3.97488338,3273.2,3272.7,3.05557]
[1736948387575,3.97488338,3273.2,3272.2,3.05604]
[1736948387576,3.97488338,3273.2,3272.8,0.03055235]
[1736948387780,4.85918338,3273.7,3272.3,3.08642119]
[1736948388008,3.97488338,3274.0,3273.0,3.05526]
[1736948388179,3.97488338,3274.0,3273.3,3.05497]
[1736948388711,3.97488338,3274.0,3273.1,0.03054488]
[1736948388915,3.97488338,3274.0,3273.7,3.05455]
[1736948389063,3.97488338,3274.0,3273.6,3.05472]
[1736948389268,3.97488338,3274.0,3273.4,0.0305449]
[1736948389492,3.97488338,3274.0,3273.2,0.0305449]
[1736948389694,0.0320847,3273.9,3273.1,3.0552]
[1736948389868,3.97488338,3274.0,3273.2,0.03054741]
[1736948390070,1.92736295,3274.5,3273.1,1.5712]
[1736948390268,0.0320847,3274.9,3274.7,3.05369]
[1736948390523,3.97488338,3275.0,3274.3,3.05408]
[1736948390709,3.97488338,3274.5,3273.1,1.5712]
[1736948390925,3.97488338,3274.5,3273.9,3.05445]
[1736948391066,3.97488338,3274.5,3273.8,3.05446]
[1736948391275,3.97488338,3274.5,3274.3,3.05403]
[1736948391473,3.97488338,3274.5,3273.9,0.03054069]
[1736948391809,0.0320847,3274.4,3273.3,3.05497]
[1736948392009,0.0320847,3274.4,3273.1,1.5712]
[1736948392315,3.97488338,3274.0,3273.3,3.05501]
[1736948392472,0.9163847,3274.3,3273.1,3.05514]
[1736948392668,3.97488338,3274.0,3272.9,0.03054444]
[1736948392872,3.97488338,3273.5,3271.9,0.03054444]
[1736948393073,3.97488338,3274.0,3273.7,3.05462]
[1736948393421,1.16827165,3274.3,3273.9,3.05439]
[1736948393615,1.16827165,3274.3,3273.6,3.05465]
[1736948393812,1.16827165,3274.3,3273.4,3.05484]
[1736948393967,1.16827165,3274.3,3273.5,0.03054159]
[1736948394173,3.97488338,3274.7,3274.4,3.05392]
[1736948394471,3.97488338,3274.7,3274.2,3.05411]
[1736948394812,3.97488338,3274.7,3273.7,1.5712]
[1736948394813,3.97488338,3274.7,3273.8,3.05455]
[1736948395112,0.8843,3275.0,3273.9,0.03053728]
[1736948395421,0.8843,3275.0,3274.1,3.05427]
[1736948395576,0.8843,3275.0,3274.6,3.05372]
[1736948395913,2.6620902,3275.6,3275.2,3.05323]
[1736948396118,2.6620902,3275.6,3274.9,0.03053134]
[1736948396265,2.6620902,3275.6,3275.5,3.05296]
[1736948397093,2.6620902,3275.6,3275.1,3.05326]
[1736948397314,2.92829922,3275.6,3274.9,0.0305276]
[1736948397615,2.6620902,3275.6,3274.4,3.05399]
[1736948397923,2.6620902,3275.6,3275.3,3.05312]
[1736948398216,2.6941749,3275.6,3274.2,1.5712]
[1736948398508,2.6620902,3275.6,3275.2,3.05322]
[1736948398717,2.7120902,3275.6,3274.5,0.03052844]
[1736948399035,0.0320847,3275.5,3274.9,3.0535]
[1736948399509,3.41287226,3275.6,3275.1,3.05327]
[1736948399982,3.41287226,3275.6,3274.2,1.5712]
[1736948400192,0.8843,3275.5,3274.4,3.0539]
[1736948400414,0.8843,3275.5,3274.1,0.03053395]
[1736948400415,3.97488338,3275.2,3274.1,0.03053395]
[1736948400585,0.8843,3275.5,3274.1,0.03053395]
[1736948400910,0.8843,3275.5,3275.2,3.05323]
[1736948401085,0.8843,3275.5,3275.4,3.05306]
[1736948401409,2.7120902,3275.6,3275.5,3.05296]
[1736948401766,2.7120902,3275.6,3274.7,3.05371]
[1736948401767,2.74049552,3275.6,3274.6,3.0538]
[1736948401969,3.97488338,3275.2,3274.7,3.05369]
[1736948402168,2.70841082,3275.6,3274.8,0.03053436]
[1736948402474,2.70841082,3275.6,3275.5,3.05296]
[1736948403227,0.05,3275.6,3275.5,3.05296]
[1736948404027,4.85918338,3276.7,3275.5,4.62416]
[1736948404238,4.85918338,3277.2,3275.6,0.03051982]
[1736948404418,3.97488338,3276.7,3276.2,3.05222]
[1736948404619,0.0320847,3276.6,3276.2,3.05222]
[1736948404794,0.0320847,3276.6,3276.4,3.05212]
[1736948405003,3.97488338,3276.7,3276.5,3.05195]
[1736948405202,0.0320847,3277.1,3276.5,3.05195]
[1736948405414,0.52121151,3277.1,3276.6,3.05192]
[1736948405628,0.0320847,3277.1,3275.7,3.05278]
[1736948405792,0.0320847,3277.1,3276.6,3.05194]
[1736948405998,0.0320847,3277.1,3276.3,3.0522]
[1736948406249,0.0320847,3277.1,3275.8,0.03051945]
[1736948406809,0.0320847,3277.1,3275.9,3.05259]
[1736948407016,0.0320847,3277.1,3276.6,3.05192]
[1736948407351,0.0320847,3277.1,3276.8,3.05172]
[1736948407527,0.0320847,3277.1,3276.0,0.0305169]
[1736948407697,3.97488338,3277.7,3276.2,3.05231]
[1736948407902,3.97488338,3277.7,3276.3,0.0305169]
[1736948408100,3.97488338,3277.7,3277.4,3.05119]
[1736948408341,3.97488338,3277.7,3276.4,4.70643]
[1736948408342,3.97488338,3277.7,3276.6,0.0305151]
[1736948408595,0.1404482,3277.9,3276.7,3.05185]
[1736948408812,0.1404482,3277.9,3276.8,0.03050933]
[1736948409150,0.1404482,3277.9,3277.8,3.05082]
[1736948410001,0.1404482,3277.9,3277.3,3.05129]
[1736948410176,0.1404482,3277.9,3277.7,3.05091]
[1736948410384,0.1404482,3277.9,3277.0,3.05157]
[1736948410385,0.1404482,3277.9,3277.0,3.05153]
[1736948410515,3.97488338,3277.7,3276.8,3.05173]
[1736948410875,0.52121151,3277.6,3276.6,3.05191]
[1736948411014,0.52121151,3277.6,3275.9,2.201]
[1736948411015,0.8843,3277.1,3275.9,2.201]
[1736948411206,0.8843,3277.1,3275.7,3.0527]
[1736948411207,3.97488338,3276.7,3275.7,3.0527]
[1736948411415,0.0320847,3276.6,3275.6,3.05284]
[1736948411671,0.73796651,3276.6,3275.3,1.6543]
[1736948411872,3.97488338,3276.7,3275.3,1.6543]
[1736948411873,3.97488338,3276.7,3276.1,3.0524]
[1736948412011,0.0320847,3276.6,3275.6,0.03052245]
[1736948412213,0.8843,3277.1,3275.7,3.05278]
[1736948412448,0.48912681,3277.6,3275.8,0.03051787]
[1736948412674,0.8843,3277.7,3277.5,3.05109]
[1736948412870,0.8843,3277.7,3276.0,0.8]
[1736948412871,4.85918338,3278.3,3277.6,3.051]
[1736948413171,0.0320847,3278.2,3277.0,4.70582]
[1736948413351,0.0320847,3278.2,3277.6,3.05097]
[1736948413669,0.0320847,3278.2,3277.0,1.6543]
[1736948413819,0.005,3278.4,3277.8,3.05082]
[1736948415367,0.005,3278.4,3277.8,4.64132]
[1736948415571,0.005,3278.4,3277.8,3.05082]
[1736948416117,0.005,3278.4,3277.7,3.05086]
[1736948416309,0.005,3278.4,3277.7,0.03050706]
[1736948416742,0.005,3278.4,3277.2,1.5905]
[1736948416947,0.005,3278.4,3277.7,3.05087]
[1736948417586,3.0,3278.1,3276.6,1.5905]
[1736948417762,0.72957304,3278.0,3277.2,3.05138]
[1736948418068,0.0320847,3278.0,3276.7,3.08236131]
[1736948418276,0.8843,3278.3,3276.9,3.05166]
[1736948418416,0.8843,3278.3,3277.9,3.0507]
[1736948418714,0.8843,3278.3,3278.0,3.05056]
[1736948418910,0.005,3278.4,3278.0,3.05056]
[1736948419110,0.005,3278.4,3277.6,0.03050387]
[1736948419348,0.005,3278.4,3277.8,3.05082]
[1736948419548,0.005,3278.4,3278.1,3.05052]
[1736948419925,0.005,3278.4,3278.3,3.05036]
[1736948421272,0.005,3278.4,3278.1,0.03049918]
[1736948421508,3.05042,3278.3,3277.1,3.05143]
[1736948421647,0.4260567,3278.2,3276.7,1.5337]
[1736948422003,0.4260567,3278.2,3271.5,10.094077]
[1736948422004,3.0,3278.1,3276.9,3.05157]
[1736948422153,3.0,3277.8,3276.7,3.05177]
[1736948422341,3.05101,3277.6,3276.5,0.03051447]
[1736948422568,0.9163847,3277.5,3276.6,3.05193]
[1736948422766,0.8843,3278.0,3277.2,3.0513]
[1736948423048,0.8843,3278.0,3277.3,0.0305112]
[1736948423249,0.8843,3278.0,3276.6,0.03050806]
[1736948423250,0.0320847,3277.9,3276.6,0.03050806]
[1736948423485,0.28267781,3277.9,3276.7,0.03051]
[1736948423649,0.28267781,3277.9,3276.9,3.05162]
[1736948423852,0.31476251,3277.9,3277.2,3.05137]
[1736948424099,3.36551251,3277.9,3276.2,1.5337]
[1736948424303,0.42498125,3277.8,3276.9,3.05164]
[1736948424506,7.05789808,3277.7,3276.6,3.05193]
[1736948424665,0.0320847,3277.6,3276.7,3.05181]
[1736948424984,0.31476251,3277.6,3276.3,0.03051392]
[1736948425295,0.28267781,3277.6,3277.4,3.05116]
[1736948425614,0.28267781,3277.6,3277.1,3.05142]
[1736948425893,0.28267781,3277.6,3277.0,3.05157]
[1736948426182,0.28267781,3277.6,3277.1,0.03050916]
[1736948426387,0.28267781,3277.6,3277.4,3.05117]
[1736948426599,0.28267781,3277.8,3277.1,3.05143]
[1736948426745,0.0320847,3277.7,3276.5,3.05203]
[1736948426952,0.0320847,3277.7,3276.2,1.5337]
[1736948427148,0.0320847,3277.7,3276.9,3.05158]
[1736948427402,3.0511,3277.5,3276.4,3.05205]
[1736948427553,0.8843,3277.1,3275.7,1.5337]
[1736948427751,0.8843,3277.1,3275.2,4.58688]
[1736948427752,3.97488338,3276.6,3275.2,4.58688]
[1736948427995,0.0320847,3276.5,3275.8,3.05268]
[1736948428297,0.8843,3277.1,3275.9,0.03052466]
[1736948428298,4.85918338,3277.1,3275.9,0.03052466]
[1736948428466,4.85918338,3277.1,3275.2,1.5337]
[1736948428467,4.85918338,3277.1,3276.7,3.05177]
[1736948428654,0.8843,3277.1,3275.7,0.397]
[1736948428858,0.31476251,3277.4,3276.5,3.05199]
[1736948429211,3.97488338,3277.1,3275.7,0.397]
[1736948429357,0.31476251,3277.0,3275.9,3.05252]
[1736948429710,0.31476251,3277.0,3275.7,0.397]
[1736948429711,0.8843,3276.9,3275.7,0.397]
[1736948429857,0.0320847,3276.8,3275.8,0.03052153]
[1736948430050,0.0320847,3276.8,3275.3,3.05313]
[1736948430303,0.0320847,3276.8,3275.4,0.498383]
[1736948430613,0.28267781,3276.7,3275.5,3.08343048]
[1736948430812,3.97488338,3276.4,3275.2,1.5337]
[1736948430954,3.97488338,3276.4,3274.7,5.40876066]
[1736948430955,0.8843,3276.2,3275.3,3.05313]
[1736948431163,0.8843,3276.2,3275.0,0.03052553]
[1736948431584,0.31476251,3276.1,3275.4,3.05303]
[1736948431785,3.97488338,3275.9,3275.0,3.05337]
[1736948432005,0.0320847,3275.8,3274.4,3.05392]
[1736948432207,0.0320847,3275.8,3274.8,3.05361]
[1736948432506,0.0320847,3275.8,3274.0,0.14973298]
[1736948432507,3.97488338,3275.4,3274.2,3.0541]
[1736948432708,0.0320847,3275.3,3273.6,1.5337]
[1736948432869,0.0320847,3275.3,3274.3,3.05403]
[1736948433073,0.0320847,3275.3,3274.4,0.03053608]
[1736948433074,0.28267781,3275.3,3274.4,0.03053608]
[1736948433254,0.28267781,3275.3,3275.0,3.05342]
[1736948433455,0.28267781,3275.3,3275.2,3.05324]
[1736948433655,0.28267781,3275.3,3274.8,0.03053204]
[1736948433857,0.28267781,3275.3,3275.2,3.05324]
[1736948434505,0.28267781,3275.3,3273.9,3.05446]
[1736948434705,3.97488338,3275.4,3274.0,3.39033872]
[1736948435013,3.97488338,3275.4,3274.8,3.0536]
[1736948435157,3.97488338,3275.4,3274.9,3.0535]
[1736948435359,3.97488338,3275.4,3274.3,3.05403]
[1736948435618,0.28267781,3275.3,3274.4,0.03053272]
[1736948435779,0.28267781,3275.3,3274.8,3.0536]
[1736948435960,0.28267781,3275.3,3274.4,0.03053273]
[1736948436161,0.28267781,3275.3,3274.9,3.05351]
[1736948436462,0.28267781,3275.3,3275.0,0.03053273]
[1736948436776,0.28267781,3275.3,3275.2,3.05324]
[1736948437872,0.28267781,3275.6,3275.2,3.36161699]
[1736948438106,0.28267781,3275.6,3275.5,3.05296]
[1736948438318,7.81e-06,3275.6,3275.5,3.08348089]
[1736948438861,7.81e-06,3275.6,3275.5,3.46448089]
[1736948439060,0.8843,3276.8,3276.6,3.05194]
[1736948439262,0.8843,3276.8,3275.9,3.05259]
[1736948439511,0.8843,3276.8,3276.3,3.05219]
[1736948439710,0.8843,3276.8,3276.0,3.05241]
[1736948439898,0.51800304,3276.7,3276.1,3.05234]
[1736948440146,0.8843,3276.8,3276.2,0.03052036]
[1736948440412,0.8843,3276.8,3275.6,3.05287]
[1736948440608,0.8843,3276.8,3276.4,3.05212]
[1736948440762,0.8843,3276.8,3275.7,0.03051725]
[1736948440763,3.8843,3276.8,3275.7,0.03051725]
[1736948440964,0.8843,3276.0,3274.4,1.5129]
[1736948441181,3.97488338,3275.7,3274.5,3.0539]
[1736948441403,0.8843,3276.0,3274.7,3.05371]
[1736948441581,0.8843,3276.0,3275.0,3.05343]
[1736948441759,0.8843,3276.6,3275.7,3.05274]
[1736948442075,0.0320847,3276.5,3275.4,3.05299]
[1736948442280,3.97488338,3276.3,3275.2,3.05316]
[1736948442514,0.0320847,3276.2,3275.0,0.03052482]
[1736948442683,3.97488338,3276.3,3275.5,3.0529]
[1736948442865,0.0320847,3276.2,3275.0,0.0305243]
[1736948443217,0.0320847,3276.2,3274.5,0.381]
[1736948443369,3.97488338,3276.3,3274.8,3.05362]
[1736948443563,3.97488338,3276.3,3274.9,0.03052372]
[1736948443802,0.8843,3276.6,3275.1,3.05334]
[1736948444004,0.8843,3276.6,3275.3,3.05307]
[1736948444333,0.8843,3276.6,3275.4,0.03052161]
[1736948444623,0.0320847,3276.5,3275.7,3.05277]
[1736948444915,0.42890917,3276.5,3275.0,3.43436]
[1736948445067,3.97488338,3276.3,3275.1,3.05334]
[1736948445274,0.0320847,3276.2,3275.2,3.0532]
[1736948445518,0.0320847,3276.2,3275.5,3.05291]
[1736948445719,3.97488338,3276.3,3275.5,3.05291]
[1736948446029,0.8843,3276.6,3275.6,0.03052463]
[1736948446320,0.8843,3276.6,3275.0,3.05343]
[1736948446321,1.37021834,3276.6,3275.0,3.05343]
[1736948446508,0.0320847,3276.5,3275.1,0.03052235]
[1736948446813,0.8843,3275.7,3274.6,0.2470993]
[1736948446999,0.0320847,3275.6,3274.5,3.05386]
[1736948447195,0.0320847,3275.6,3274.9,3.0535]
[1736948447413,0.8843,3275.7,3275.0,0.0305322]
[1736948447641,0.8843,3275.7,3275.5,3.05288]
[1736948447807,0.8843,3275.7,3275.1,3.05325]
[1736948447975,0.8843,3275.7,3273.9,4.93229]
[1736948447976,0.8843,3275.7,3274.1,3.05427]
[1736948448172,0.8843,3275.7,3274.9,3.05345]